Cogmind - Beta 14 @@@ ROGUE MODE // 2024.12.24 @ 21:46:14 Player: Derk Result: Core destroyed Performance ------------- Evolutions (1) 500 Regions Visited (3) 600 Robots Destroyed (41) 205 Value Destroyed (997) 997 Prototype IDs (5) 100 Alien Tech Used (0) 0 Bonus (0) 0 TOTAL SCORE: 2402 Bonus ------- None Cogmind --------- Core Integrity 0/400 Matter 241/300 Energy 224/280 System Corruption 0% Temperature Critical (504) Movement Treading (225) Ox1 Location -9/Mines Parts ------- > --- POWER (1) -------- Heavy Ion Engine > --- PROPULSION (2) --- Advanced Treads > --- UTILITY (4) ------ Heat Sink Medium Storage Unit Targeting Computer Hardened Light Armor Plating > --- WEAPON (2) ------- Improved Medium Laser Heavy Particle Gun > --- INVENTORY (10) --- Improved Flight Unit Hardened Light Armor Plating Hacking Suite Peak State ------------ > --- POWER ------------ Heavy Ion Engine > --- PROPULSION ------- Advanced Treads Advanced Treads > --- UTILITY ---------- Cooling System Small Storage Unit Targeting Computer Medium Armor Plating > --- WEAPON ----------- Heavy Particle Gun Improved Grenade Launcher > --- INVENTORY -------- Advanced Treads Advanced Treads Improved Flight Unit Heat Sink Hardened Light Armor Plating Hardened Light Armor Plating Hacking Suite Heavy Particle Gun [Rating: 24] Favorites ----------- Power Ion Engine Engine Ion Engine Power Core Light Nuclear Core Propulsion Advanced Treads Treads Advanced Treads Leg Aluminum Leg Wheel Wheel Flight Unit Improved Flight Unit Utility Targeting Computer Device Cooling System Storage Small Storage Unit Processor Targeting Computer Protection Medium Armor Plating Weapon Improved Grenade Launcher Energy Gun EM Pulse Gun Ballistic Gun Light Assault Rifle Launcher Improved Grenade Launcher Impact Weapon Hammer Build | -11 -10 -9 -9 ------- Run | Yrd Mat Mat Min Slots Evolved 2 | . . 2 . Power . | . . . . Propulsion . | . . . . Utility 2 | . . 2 . Weapon . | . . . . Parts Attached 46 | 7 11 22 6 Power 6 | 1 2 3 . Engine 5 | 1 1 3 . Core 1 | . 1 . . Reactor . | . . . . Propulsion 17 | 2 5 8 2 Treads 7 | . 3 2 2 Leg 4 | . . 4 . Wheel 4 | 2 2 . . Hover . | . . . . Flight 2 | . . 2 . Utility 10 | 2 1 5 2 Device 3 | 1 . 1 1 Storage 2 | 1 . 1 . Processor 1 | . 1 . . Hackware . | . . . . Protection 4 | . . 3 1 Artifact . | . . . . Weapon 13 | 2 3 6 2 Energy Gun 9 | 1 2 4 2 Energy Cannon . | . . . . Ballistic Gun 2 | 1 . 1 . Ballistic Cannon . | . . . . Launcher 1 | . . 1 . Special Weapon . | . . . . Impact Weapon 1 | . 1 . . Slashing Weapon . | . . . . Piercing Weapon . | . . . . Special Melee Weapon . | . . . . Unidentified Prototypes 4 | . . 3 1 Corrupted Parts 1 | . 1 . . System Corruption 7 | . 7 . . Parts Lost 20 | . 9 4 7 Power 3 | . 2 1 . Propulsion 10 | . 4 3 3 Utility 2 | . . . 2 Weapon 5 | . 3 . 2 Highest Loss Streak 7 | . 4 3 7 To Critical Strikes . | . . . . Average Slot Usage (%) 94 | . 96 92 90 Engine 10 | . 13 9 11 Treads 15 | . 18 13 19 Leg 3 | . . 5 . Wheel 4 | . 8 2 . Device 6 | . . 9 11 Storage 11 | . 14 11 11 Processor 11 | . 13 11 11 Protection 5 | . . 8 6 Energy Gun 10 | . 12 9 17 Ballistic Gun 5 | . 12 3 . Launcher 4 | . . 6 3 Impact Weapon 1 | . 1 1 . Peak Build Rating 24 | 7 8 24 23 Average Rating 14 | 5 7 17 20 On Entrance 9 | . 7 8 23 Naked Turns . | . . . . Heaviest Build 36 | 13 13 36 36 Greatest Support 44 | 20 40 44 44 Greatest Overweight (x) 2 | . . 2 1 Average Overweight (x) . | . . . . Largest Inventory Capacity 10 | 8 8 10 10 Average Capacity 8 | 6 8 8 10 Most Carried 9 | 7 8 9 9 Average Carried 6 | 4 7 7 6 Final Capacity 10 | 8 8 10 10 Final Carried 9 | 7 2 9 3 Class Distribution -------------------- 84% | Mutant 15% | Scavenger-Mutant Dominant Class ---------------- Mutant | -10/Materials Mutant | -9/Materials Mutant | -9/Mines Resources | -11 -10 -9 -9 ----------- Run | Yrd Mat Mat Min Matter Collected 777 | 275 113 371 18 Remotely . | . . . . Salvage Created 1517 | 76 593 620 228 Parts 82 | 6 34 37 5 Haulers Intercepted 4 | . 2 2 . Recyclers Shooed 1 | . . . 1 Parts Field Recycled . | . . . . Retrieved Matter . | . . . . Parts Self-Destructed . | . . . . Prevented . | . . . . Kills | -11 -10 -9 -9 ------- Run | Yrd Mat Mat Min Combat Hostiles Destroyed 35 | . 12 14 9 Melee 3 | . 2 1 . Guns 28 | . 10 10 8 AOE 4 | . . 3 1 Classes Destroyed 10 | 2 5 2 1 Worker 2 | . . 2 . Tunneler 1 | 1 . . . Hauler 4 | . 2 2 . Recycler 1 | 1 . . . Operator 2 | . 1 1 . Watcher 2 | . 1 1 . Swarmer 8 | . 2 6 . Grunt 17 | . 10 4 3 Sentry 4 | . . 4 . Assembled 6 | . . . 6 Best Kill Streak 6 | 1 4 5 6 Combat Bots Only 6 | . 3 4 6 Max Kills in Single Turn 2 | 1 1 2 2 Gunslinging 1 | . . 1 . Exploded 1 | . . 1 1 Melee 1 | . 1 1 . Uniques/NPCs Destroyed . | . . . . Combat | -11 -10 -9 -9 -------- Run | Yrd Mat Mat Min Hostile Shots Fired 274 | . 113 85 76 Missed 80 | . 34 30 16 Damage Taken 3209 | . 1006 790 1413 Core 591 | . 152 219 220 Absorbed by Shields . | . . . . Core Remaining (%) 69 | 100 39 . . Volleys Fired 130 | 5 47 55 23 Largest 2 | 2 2 2 2 Hottest 111 | 60 80 91 111 Shots Fired 197 | 10 84 68 35 Gun 193 | 10 84 64 35 Cannon . | . . . . Launcher 4 | . . 4 . Special . | . . . . Kinetic 66 | 5 35 26 . Thermal 67 | 5 2 35 25 Explosive 4 | . . 4 . Electromagnetic 60 | . 47 3 10 Robot Hit Streak 13 | 9 8 13 6 Robot Miss Streak 3 | . 3 3 3 Penetration Max . | . . . . Secondary Targets 5 | . 2 1 2 Max Gunslinging Chain 1 | . 1 1 1 Shots Hit Robots 162 | 9 62 68 23 Core Hits 76 | 3 28 26 19 Critical Kills 1 | . . 1 . Critical Parts Destroyed 2 | . 1 1 . Critical Strikes 5 | . 1 3 1 Burn 2 | . . 1 1 Smash 3 | . 1 2 . Melee Attacks 32 | . 11 21 . Impact 32 | . 11 21 . Slashing . | . . . . Piercing . | . . . . Sneak Attacks 1 | . . 1 . Combat Hostiles . | . . . . Follow-up Attacks . | . . . . Damage Inflicted 3027 | 91 898 1485 553 Guns 2055 | 91 640 874 450 Cannons . | . . . . Explosions 497 | . 73 321 103 Melee 475 | . 185 290 . Ramming . | . . . . Kinetic 519 | 34 172 313 . Thermal 1020 | 57 84 490 389 Explosive 321 | . . 321 . Electromagnetic 692 | . 457 71 164 Impact 475 | . 185 290 . Slashing . | . . . . Piercing . | . . . . Highest Corruption 7 | . 7 . . Average Corruption 7 | . 7 . . Corruption Purged . | . . . . Corruption Blocked . | . . . . Overload Shots . | . . . . Overflow Damage 105 | . 29 76 . Projectiles . | . . . . Explosions 25 | . . 25 . Melee 80 | . 29 51 . Knockbacks 2 | . 2 . . Impact 2 | . 2 . . Kinetic . | . . . . Secondary . | . . . . Self-Inflicted Damage 122 | . 36 86 . Shots 4 | . 1 3 . Rammed . | . . . . Targets Rammed . | . . . . Kicked . | . . . . Crushed . | . . . . Highest Temperature 504 | 40 121 45 504 Average Temperature 62 | 25 33 23 237 Received Heat Transfer 1185 | . 432 285 468 Effects 4 | . . . 4 Shutdowns 1 | . . . 1 Energy Bleed 1 | . . . 1 Matter Decay 1 | . . . 1 Damage (core) 1 | . . . 1 Siege Activations . | . . . . Robots Corrupted . | . . . . Combat Hostiles . | . . . . Parts Fried 3 | . 3 . . Impact Corruptions 4 | . 1 3 . Robots Melted . | . . . . Combat Hostiles . | . . . . Parts Melted 3 | 1 . 2 . Heat Transferred 2165 | 125 225 1099 716 Parts Sabotaged . | . . . . Parts Stolen . | . . . . Parts Stripped . | . . . . Power Chain Reactions 2 | . 1 . 1 Alert | -11 -10 -9 -9 ------- Run | Yrd Mat Mat Min Peak Influence 246 | 10 246 210 99 Initial 72 | . 6 72 10 Average 79 | 4 102 72 64 Maximum Alert Level 1 | . 1 1 . Low Security (%) 91 | 100 83 95 100 Level 1 8 | . 16 4 . Level 2 . | . . . . Level 3 . | . . . . Level 4 . | . . . . Level 5 . | . . . . High Security . | . . . . Max Security . | . . . . Squads Dispatched 8 | . 5 3 . Investigation 3 | . 3 . . Extermination . | . . . . Reinforcement 5 | . 2 3 . Assault . | . . . . Garrison . | . . . . Intercept . | . . . . Searches Triggered . | . . . . Construction Impeded . | . . . . Haulers Reinforced . | . . . . Active Scanning Responses . | . . . . Cargo Convoy Interrupts . | . . . . Stealth | -11 -10 -9 -9 --------- Run | Yrd Mat Mat Min Distress Signals 3 | . 2 1 . Communications Jammed . | . . . . Distress Signals . | . . . . Times Spotted 54 | . 21 19 14 Peak Tracking Total 7 | . 5 4 7 Tactical Retreats 4 | . 4 . . Traps | -11 -10 -9 -9 ------- Run | Yrd Mat Mat Min Traps Triggered 3 | . 3 . . Indirectly . | . . . . Trap Hack Attempts . | . . . . Triggered . | . . . . Disarmed . | . . . . Reprogrammed . | . . . . Reused . | . . . . Traps Extracted . | . . . . Installed . | . . . . Triggered . | . . . . Machines | -11 -10 -9 -9 ---------- Run | Yrd Mat Mat Min Machines Disabled 2 | . . 1 1 Max in Single Turn 1 | . . 1 1 Machines Repaired . | . . . . Machines Dismantled . | . . . . Machines Sabotaged . | . . . . Overloaded Fab Kills . | . . . . Hacking | -11 -10 -9 -9 --------- Run | Yrd Mat Mat Min Machines Accessed 8 | . 2 6 . Terminals 6 | . 1 5 . Fabricators . | . . . . Repair Stations 1 | . 1 . . Recycling Units . | . . . . Scanalyzers 1 | . . 1 . Garrison Access . | . . . . Total Hacks 30 | . 3 27 . Successful 15 | . 1 14 . Failed 15 | . 2 13 . Catastrophic . | . . . . Database Lockouts . | . . . . Manual 10 | . . 10 . Terminals 24 | . 2 22 . Fabricators . | . . . . Repair Stations 1 | . 1 . . Recycling Units . | . . . . Scanalyzers 5 | . . 5 . Garrison Access . | . . . . Terminal Hacks 8 | . 1 7 . Robot Analysis 1 | . . 1 . Unreport Threat 1 | . . 1 . Locate Traps 2 | . . 2 . Hauler Manifests 1 | . . 1 . Zone Layout 3 | . 1 2 . Fabricator Hacks . | . . . . Repair Station Hacks . | . . . . Recycling Unit Hacks . | . . . . Scanalyzer 3 | . . 3 . Insert Component 2 | . . 2 . Analyze 1 | . . 1 . Garrison Access Hacks . | . . . . Unauthorized Hacks 4 | . . 4 . Terminals 4 | . . 4 . Track 2 | . . 2 . Botnet 1 | . . 1 . Operators 1 | . . 1 . Fabricators . | . . . . Repair Stations . | . . . . Recycling Units . | . . . . Scanalyzers . | . . . . Garrison Access . | . . . . Data Cores Recovered . | . . . . Used . | . . . . Hacking Detections 7 | . 2 5 . Full Trace Events . | . . . . Feedback Events . | . . . . Feedback Blocked . | . . . . Robot Schematics Acquired . | . . . . Robots Built . | . . . . Authchips . | . . . . Time . | . . . . Total Robot Build Rating . | . . . . Part Schematics Acquired 1 | . . 1 . Parts Built . | . . . . Authchips . | . . . . Time . | . . . . Total Part Build Rating . | . . . . Parts Repaired . | . . . . Time . | . . . . Parts Recycled . | . . . . Recycled Matter . | . . . . Retrieved Matter . | . . . . Retrieved Components . | . . . . Parts Scanalyzed 2 | . . 2 . Part Schematics Acquired 1 | . . 1 . Parts Damaged . | . . . . Bothacking | -11 -10 -9 -9 ------------ Run | Yrd Mat Mat Min Used RIF Installer . | . . . . Robots Hacked . | . . . . Non-combat . | . . . . Combat . | . . . . Robot Hacks Applied . | . . . . Relay Couplers Released . | . . . . Fabnet Peak Effective % . | . . . . Robots Rewired . | . . . . Allies Hacked . | . . . . Hacks Repelled . | . . . . Allies | -11 -10 -9 -9 -------- Run | Yrd Mat Mat Min Total Allies . | . . . . Largest Group . | . . . . Highest-Rated Group . | . . . . Highest-Rated Ally . | . . . . Total Orders . | . . . . Ally Attacks . | . . . . Total Damage . | . . . . Kills . | . . . . Allies Corrupted . | . . . . Allies Melted . | . . . . Intel | -11 -10 -9 -9 ------- Run | Yrd Mat Mat Min Robot Analysis Total 1 | . . 1 . Derelict Logs Recovered . | . . . . Drone Launches . | . . . . Drone Recoveries . | . . . . Exploration | -11 -10 -9 -9 ------------- Run | Yrd Mat Mat Min Turns Passed 2169 | 75 669 1339 86 Spaces Moved 1264 | 53 384 812 15 Core 3 | 2 . 1 . Treads 724 | . 214 495 15 Legs 155 | . . 155 . Wheels 315 | 51 170 94 . Hover . | . . . . Flight 67 | . . 67 . Fastest Speed 34 | 50 80 34 145 Average Speed 126 | 78 124 129 150 Slowest Speed 225 | 80 160 225 225 Overloaded Moves . | . . . . Propulsion Burnouts . | . . . . Robots Hopped . | . . . . Cave-ins Triggered . | . . . . Exploration Rate (%) 37 | 4 69 68 8 Regions Visited 3 Branch Regions 1 Pre-discovered Areas . | . . . . Known Exits Taken . | . . . . Unknown Exits Taken 3 | 1 1 1 . Scrap Searched . | . . . . Spaces Dug 9 | . . 9 . Terrain Destroyed 39 | . 3 31 5 Melee 6 | . . 6 . Projectile 1 | . . . 1 AOE 32 | . 3 25 4 Terrain Rammed . | . . . . Walls Destroyed . | . . . . Machines Disabled . | . . . . Actions | -11 -10 -9 -9 --------- Run | Yrd Mat Mat Min Total 1600 | 73 478 1005 44 Wait 74 | 2 12 60 . Move 1261 | 52 383 811 15 Hop . | . . . . Pick Up 30 | 7 7 16 . Fast Attach 21 | 7 3 11 . Attach 16 | . 7 3 6 Detach 2 | . . 2 . Swap 9 | . 1 8 . Drop 25 | . 7 18 . Fire 130 | 5 47 55 23 Melee 32 | . 11 21 . Ram . | . . . . Kick . | . . . . Crush . | . . . . Escape Stasis . | . . . . Rewire . | . . . . Trap . | . . . . Miscellaneous . | . . . . Route ------- -11/Scrapyard -10/Materials (discovered 4 exits: *Mat x3 / [*Min]) -9/Materials (discovered 3 exits: [*Mat x2] / [*Min]) -9/Mines History --------- Turn | Location | Event 5 | -11/Scrapyard | Discovered new exit (range 16) 76 | -11/Scrapyard | Entered Materials 220 | -10/Materials | Discovered new exit (range 9) 291 | -10/Materials | Discovered new exit (range 16) 322 | -10/Materials | Build established: Mutant 389 | -10/Materials | Discovered new exit (range 15) 614 | -10/Materials | Discovered new exit (range 10) 698 | -10/Materials | Lost 3 parts (1n2w) 722 | -10/Materials | Core integrity fell below 50% 745 | -10/Materials | Entered another Materials area 745 | -9/Materials | Evolved 2 slots: Utility x2 757 | -9/Materials | Lost 4 parts (1p2n1w) 927 | -9/Materials | Lost 3 parts (1p2n) 1276 | -9/Materials | Build established: Scavenger-Mutant 1341 | -9/Materials | Discovered new exit (range 15) 1513 | -9/Materials | Core integrity fell below 50% 1590 | -9/Materials | Build established: Mutant 1594 | -9/Materials | Discovered new exit (range 12) 1825 | -9/Materials | Discovered new exit (range 16) 2084 | -9/Materials | Entered Mines 2085 | -9/Mines | Assembled infested the area 2090 | -9/Mines | Assisted by a Guerilla fighting off Assembled 2133 | -9/Mines | Core integrity fell below 20% 2171 | -9/Mines | Core destroyed Last Messages --------------- 02142_ Switching to secondary target: as-81219. 02144_ The unstable cave ceiling collapses. 02145_ Critical hit (Burn: +80). 02145_ as-69988 destroyed. 02150_ Cooling System destroyed. 02151_ The unstable cave ceiling collapses. 02156_ Adv. Treads destroyed. 02157_ The unstable cave ceiling collapses. 02159_ as-85084 destroyed. 02160_ Acquired 18 matter. 02162_ Overheating: Matter decay (-42). 02162_ as-90432 suffers critical hit (Burn). 02162_ as-90432 destroyed. 02165_ as-81219 destroyed. 02167_ Overheating: Energy bleed (-58). 02168_ Power failure, Hvy. Ion Engine shutdown. 02168_ The unstable cave ceiling collapses. 02168_ as-02377 destroyed. 02168_ Switching to secondary target: as-11576. 02171_ Overheating: Core damaged (-52). Map ----- +----------------------------------------------------+ | ?????????????????????????????????????????????????? | | ?????????????????????????????????????????????????? | | ?????????????????????????????????????????????????? | | ?????????????????????????????????????????????????? | | ?????????????????????????????????????????????????? | | ?????????????????????????????????????????????????? | | ?????????????????????????????????????????????????? | | ?????????????????????????????????????????????????? | | ?????????????????????????????????????????????????? | | ?????????????????????????????????????????????????? | | ?????????????????????????????????????????????????? | | ?????????????????????????????????? ????????????? | | ?????????????????#??????????????? ???????????? | | ????????????????## ?###????????? ??????????? | | ????????????????## ## ###????? ???????????? | | ????????????????## # ###???a ?????????????? | | ??????????????####% ### ???????????????? | | ??????????????# # ?????????????????? | | ??????????????# #??????????????????? | | ??????????????# ###?????????????????? | | ??????????????# # # # #?????????????????? | | ?????????????????# # #?????????????????? | | ?????????????????## ##% ##?????????????????? | | ??????????????????## ##%%%a #?????????????????? | | ???????????????????# # % #?????????????????? | | ???????????????????## # @ #?????????????????? | | ????????????????????##; = ###?????????????????? | | ?????????????????????#;=%[ #???????????????????? | | ?????????????????????#; =%! #???????????????????? | | ?????????????????????# #???????????????????? | | ?????????????????????####a####???????????????????? | | ????????????????????????#a#??????????????????????? | | ????????????????????????# ???????????????????????? | | ????????????????????????##???????????????????????? | | ?????????????????????????????????????????????????? | | | | | | | | | | | | | | | | | | | | | | | | | | | | | | | +----------------------------------------------------+ Best States ------------- Heat Dissipation 50 Energy Generation 14 Energy Capacity 280 Matter Stores 300 Matter Capacity 300 Sight Range 16 Terrain Scan Density 10 Armor Coverage 225 Power Shielding 33 Evasion (%) 63 Targeting Accuracy 5 Recoil Reduction 2 Item Schematics ----------------- Imp. Flight Unit | -9/Materials | Scanalyzed Robot Schematics ------------------ None Fabricated ------------ Nothing Alien Tech Used ----------------- None Achievements -------------- None Challenges ------------ None Game ------ Seed RelayHeartNanosword Manual? 0 Play Time 00:25:52 Cumulative 347.8 hours Start 2024.12.24 @ 21:19:17 End 2024.12.24 @ 21:46:14 Sessions 1 Manual Loads 0 Difficulty Rogue Special Mode None Game No. 141 Rogue 141 Adventurer 0 Explorer 0 Win Type - Total 12 Types 10/0/1/1/0/0/0/0/0 Lore% 48 Gallery% 75 Achievement% 67 Wizard Run 0 Options --------- Layout 0 ASCII 0 Keyboard 0 Movement Numpad Keybinds 0 Fullscreen 1 Font 24/Smallcaps Map View 76x50 Zoom Use 0% Tactical HUD 1 Map Filters NONE Filters NONE Steam 1 RUN: d36005a8-2a8b-417e-949f-08976e156984